bitfinex/quotes_SOLUSD_20230402
["timestamp","ask_amount","ask_price","bid_price","bid_amount"]
[1680412322729,17.0,20.966,20.956,10.0]
[1680412329522,10.0,20.967,20.956,10.0]
[1680412329826,17.0,20.966,20.956,10.0]
[1680412332731,7.16234743,20.969,20.956,10.0]
[1680412333233,167.4045734,20.977,20.956,10.0]
[1680412333638,7.16234743,20.971,20.956,10.0]
[1680412334833,10.0,20.969,20.956,10.0]
[1680412335038,17.0,20.968,20.956,10.0]
[1680412337140,10.0,20.968,20.956,10.0]
[1680412337442,17.0,20.967,20.956,10.0]
[1680412339127,10.0,20.968,20.956,10.0]
[1680412339328,17.0,20.967,20.956,10.0]
[1680412342341,10.0,20.966,20.955,117.9158]
[1680412342723,10.0,20.964,20.955,117.9158]
[1680412343128,17.0,20.963,20.955,117.9158]
[1680412344644,17.0,20.965,20.955,117.9158]
[1680412349332,10.0,20.966,20.955,117.9158]
[1680412349534,17.0,20.965,20.955,117.9158]
[1680412351932,10.0,20.968,20.955,117.9158]
[1680412351933,10.0,20.966,20.955,117.9158]
[1680412352133,17.0,20.965,20.955,117.9158]
[1680412355539,17.0,20.967,20.956,10.0]
[1680412362348,10.0,20.967,20.956,10.0]
[1680412362549,17.0,20.966,20.956,10.0]
[1680412363248,10.0,20.967,20.956,10.0]
[1680412363548,17.0,20.966,20.956,10.0]
[1680412365159,10.0,20.967,20.956,10.0]
[1680412365454,17.0,20.966,20.956,10.0]
[1680412369060,10.0,20.967,20.956,10.0]
[1680412369245,17.0,20.966,20.956,10.0]
[1680412371361,10.0,20.967,20.956,10.0]
[1680412371561,17.0,20.966,20.956,10.0]
[1680412372851,10.0,20.967,20.956,10.0]
[1680412373054,17.0,20.966,20.956,10.0]
[1680412375059,10.0,20.967,20.956,10.0]
[1680412375250,17.0,20.966,20.956,10.0]
[1680412377065,10.0,20.967,20.956,10.0]
[1680412377264,17.0,20.966,20.956,10.0]
[1680412385073,10.0,20.967,20.956,10.0]
[1680412385370,17.0,20.966,20.956,10.0]
[1680412390777,10.0,20.967,20.956,10.0]
[1680412390972,17.0,20.966,20.956,10.0]
[1680412395294,17.0,20.966,20.955,117.9158]
[1680412400294,17.0,20.966,20.954,20.0]
[1680412400485,17.0,20.966,20.951,30.0]
[1680412400691,10.0,20.965,20.951,30.0]
[1680412400895,17.0,20.964,20.951,30.0]
[1680412401201,10.0,20.963,20.951,30.0]
[1680412401505,17.0,20.962,20.951,30.0]
[1680412406400,10.0,20.961,20.948,10.0]
[1680412406600,38.71,20.96,20.947,108.0994]
[1680412406785,10.0,20.959,20.947,108.0994]
[1680412406990,10.0,20.957,20.947,108.0994]
[1680412407296,17.0,20.956,20.947,108.0994]
[1680412408711,10.0,20.957,20.947,108.0994]
[1680412409006,17.0,20.956,20.947,108.0994]
[1680412412108,10.0,20.957,20.947,108.0994]
[1680412412298,17.0,20.956,20.947,108.0994]
[1680412412812,17.0,20.958,20.948,10.0]
[1680412416207,10.0,20.959,20.948,10.0]
[1680412416510,17.0,20.958,20.948,10.0]
[1680412418911,17.0,20.958,20.947,108.0994]
[1680412420813,17.0,20.958,20.948,10.0]
[1680412424000,10.0,20.959,20.948,10.0]
[1680412424200,10.0,20.957,20.948,10.0]
[1680412424414,17.0,20.956,20.948,10.0]
[1680412425104,17.0,20.958,20.948,10.0]
[1680412430520,17.0,20.958,20.947,108.0994]
[1680412450438,80.4383,20.966,20.948,10.0]
[1680412450639,31.71,20.97,20.948,10.0]
[1680412451722,10.0,20.961,20.948,10.0]
[1680412451928,10.0,20.959,20.948,10.0]
[1680412452327,17.0,20.958,20.948,10.0]
[1680412453246,17.0,20.96,20.948,10.0]
[1680412458038,10.0,20.961,20.948,10.0]
[1680412458338,10.0,20.959,20.948,10.0]
[1680412458542,17.0,20.958,20.948,10.0]
[1680412459349,17.0,20.96,20.948,10.0]
[1680412464040,10.0,20.966,20.95,10.0]
[1680412464243,10.0,20.961,20.952,10.0]
[1680412464445,17.0,20.96,20.953,20.0]
[1680412465446,17.0,20.962,20.953,20.0]
[1680412468353,10.0,20.966,20.953,20.0]
[1680412468354,10.0,20.963,20.953,20.0]
[1680412468544,17.0,20.962,20.953,20.0]
[1680412477557,10.0,20.963,20.953,20.0]
[1680412477756,17.0,20.962,20.953,20.0]
[1680412479665,17.0,20.964,20.953,20.0]
[1680412485868,10.0,20.964,20.953,20.0]
[1680412488278,17.0,20.965,20.953,20.0]
[1680412491081,17.0,20.965,20.954,10.0]
[1680412492281,10.0,20.965,20.954,10.0]
[1680412494587,17.0,20.966,20.954,10.0]
[1680412505890,17.0,20.965,20.954,10.0]
[1680412508107,21.71,20.98,20.954,10.0]
[1680412508284,10.0,20.976,20.956,10.0]
[1680412509399,10.0,20.971,20.956,10.0]
[1680412509594,17.0,20.97,20.956,10.0]
[1680412511201,17.0,20.972,20.956,10.0]
[1680412511402,10.0,20.971,20.956,10.0]
[1680412511590,17.0,20.97,20.956,10.0]
[1680412512196,17.0,20.972,20.956,10.0]
[1680412514405,10.0,20.972,20.956,10.0]
[1680412514697,17.0,20.971,20.956,10.0]
[1680412515801,17.0,20.973,20.961,10.0]
[1680412517090,17.0,20.975,20.961,10.0]
[1680412517290,30.0,20.974,20.961,10.0]
[1680412517504,17.0,20.973,20.961,10.0]
[1680412518306,10.0,20.979,20.961,10.0]
[1680412518491,23.824,20.987,20.963,10.0]
[1680412518693,10.0,20.986,20.963,10.0]
[1680412518901,10.0,20.984,20.965,10.0]
[1680412519097,20.0,20.983,20.965,10.0]
[1680412519303,10.0,20.982,20.965,10.0]
[1680412519898,10.0,20.98,20.965,10.0]
[1680412520093,17.0,20.979,20.967,10.0]
[1680412520807,10.0,20.982,20.967,10.0]
[1680412520808,10.0,20.98,20.967,10.0]
[1680412521012,17.0,20.979,20.967,10.0]
[1680412522009,10.0,20.98,20.967,10.0]
[1680412522197,17.0,20.979,20.967,10.0]
[1680412524504,10.0,20.98,20.967,10.0]
[1680412524707,17.0,20.979,20.967,10.0]
[1680412525405,10.0,20.98,20.967,10.0]
[1680412525604,17.0,20.979,20.967,10.0]
[1680412526221,17.0,20.981,20.967,10.0]
[1680412528417,19.082595,20.977,20.967,10.0]
[1680412538024,19.082595,20.977,20.97,21.63]
[1680412538224,19.082595,20.977,20.971,20.0]
[1680412538425,19.082595,20.977,20.972,10.0]
[1680412538818,19.082595,20.977,20.974,10.0]
[1680412539322,23.814,20.997,20.972,10.0]
[1680412539522,10.0,20.995,20.974,10.0]
[1680412539920,20.0,20.994,20.974,10.0]
[1680412540221,10.0,20.995,20.974,10.0]
[1680412540628,10.0,20.993,20.974,10.0]
[1680412540831,10.0,20.991,20.974,10.0]
[1680412541014,17.0,20.99,20.974,10.0]
[1680412542430,10.0,20.991,20.976,10.0]
[1680412543816,17.0,20.99,20.976,10.0]
[1680412551726,10.0,20.993,20.976,10.0]
[1680412551919,10.0,20.993,20.978,10.0]
[1680412553037,10.0,20.991,20.978,10.0]
[1680412555830,17.0,20.992,20.978,10.0]
[1680412557026,17.0,20.992,20.981,10.0]
[1680412558238,17.0,20.993,20.981,10.0]
[1680412560344,19.082595,20.994,20.981,10.0]
[1680412560526,19.082595,20.994,20.983,10.0]
[1680412560726,19.082595,20.994,20.985,10.0]
[1680412569031,83.8536,20.999,20.985,10.0]
[1680412569227,17.0,20.997,20.985,10.0]
[1680412569441,10.0,20.996,20.985,10.0]
[1680412569642,17.0,20.995,20.985,10.0]
[1680412572551,10.0,20.996,20.985,10.0]
[1680412572731,17.0,20.995,20.985,10.0]
[1680412573452,83.8536,20.999,20.985,10.0]
[1680412573843,17.0,20.997,20.985,10.0]
[1680412574352,10.0,20.999,20.985,10.0]
[1680412579855,33.802,21.006,20.985,10.0]
[1680412580046,10.0,21.003,20.987,10.0]
[1680412580248,17.0,21.002,20.987,10.0]
[1680412580553,10.0,21.001,20.987,10.0]
[1680412580762,10.0,20.999,20.987,10.0]
[1680412583157,17.0,21.0,20.987,10.0]
[1680412589244,10.0,21.001,20.987,10.0]
[1680412589447,19.060883,21.003,20.987,10.0]
[1680412589647,19.060883,21.003,20.989,10.0]
[1680412592766,10.0,21.002,20.989,10.0]
[1680412593859,10.0,21.0,20.988,114.2607]
[1680412594047,10.0,20.998,20.988,114.2607]
[1680412594666,10.0,21.0,20.989,10.0]
[1680412594869,17.0,20.999,20.989,10.0]
[1680412596861,10.0,21.0,20.989,10.0]
[1680412597158,10.0,20.998,20.989,10.0]
[1680412597554,10.0,21.0,20.989,10.0]
[1680412598656,17.0,20.999,20.989,10.0]
[1680412599560,10.0,21.0,20.989,10.0]
[1680412599761,17.0,20.999,20.989,10.0]
[1680412600966,10.0,21.0,20.989,10.0]
[1680412601263,17.0,20.999,20.989,10.0]
[1680412602267,17.0,21.001,20.989,10.0]
[1680412604355,21.71,21.0,20.988,114.2607]
[1680412604555,10.0,20.998,20.988,114.2607]
[1680412604954,10.0,20.996,20.988,114.2607]
[1680412605457,10.0,20.998,20.988,114.2607]
[1680412605759,17.0,20.997,20.988,114.2607]
[1680412609268,10.0,20.997,20.988,114.2607]
[1680412609468,17.0,20.996,20.988,114.2607]
[1680412610164,17.0,20.998,20.988,114.2607]
[1680412612561,17.0,20.998,20.986,119.1387]
[1680412615171,17.0,20.998,20.987,10.0]
[1680412615376,10.0,20.998,20.987,10.0]
[1680412615577,10.0,20.996,20.987,10.0]
[1680412615985,17.0,20.995,20.987,10.0]
[1680412616578,17.0,20.997,20.987,10.0]
[1680412618188,17.0,20.997,20.986,119.1387]
[1680412618377,10.0,20.996,20.986,119.1387]
[1680412618575,17.0,20.995,20.986,119.1387]
[1680412618760,10.0,20.994,20.986,119.1387]
[1680412618964,17.0,20.993,20.986,119.1387]
[1680412619478,17.0,20.995,20.986,119.1387]
[1680412620668,10.0,20.996,20.986,119.1387]
[1680412620869,17.0,20.995,20.986,119.1387]
[1680412622490,17.0,20.997,20.987,10.0]
[1680412626192,10.0,20.997,20.987,10.0]
[1680412626384,17.0,20.996,20.987,10.0]
[1680412627793,10.0,20.997,20.987,10.0]
[1680412627992,17.0,20.996,20.987,10.0]
[1680412629288,17.0,20.996,20.986,119.1387]
[1680412630397,17.0,20.996,20.987,10.0]
[1680412630599,10.0,20.997,20.987,10.0]
[1680412630780,17.0,20.996,20.987,10.0]
[1680412632496,17.0,20.996,20.986,119.1387]
[1680412635986,10.0,20.995,20.981,10.0]
[1680412636192,21.71,20.99,20.981,10.0]
[1680412636412,17.0,20.989,20.981,10.0]
[1680412637200,17.0,20.989,20.978,10.0]
[1680412650714,17.0,20.989,20.977,231.8754]
[1680412652817,17.0,20.989,20.978,10.0]
[1680412655020,10.0,20.988,20.977,231.8754]
[1680412655214,17.0,20.987,20.977,231.8754]
[1680412655518,10.0,20.986,20.977,231.8754]
[1680412655819,17.0,20.985,20.977,231.8754]
[1680412673535,10.0,20.986,20.977,231.8754]
[1680412673734,10.0,20.984,20.977,231.8754]
[1680412674132,17.0,20.983,20.977,231.8754]
[1680412674936,17.0,20.985,20.977,231.8754]
[1680412677427,10.0,20.986,20.977,231.8754]
[1680412677627,17.0,20.985,20.977,231.8754]
[1680412684959,10.0,20.986,20.977,231.8754]
[1680412685462,10.0,20.984,20.977,231.8754]
[1680412685651,17.0,20.983,20.977,231.8754]
[1680412687147,17.0,20.985,20.977,231.8754]
[1680412688759,17.0,20.985,20.978,10.0]
[1680412694968,16.5,20.985,20.978,10.0]
[1680412699478,16.5,20.985,20.977,231.8754]
[1680412725694,16.5,20.985,20.966,108.8899]
[1680412725695,10.0,20.984,20.969,10.0]
[1680412725886,21.71,20.98,20.969,10.0]
[1680412726202,10.0,20.978,20.969,10.0]
[1680412726386,17.0,20.977,20.969,10.0]
[1680412726799,17.0,20.977,20.968,10.0]
[1680412727496,17.0,20.977,20.967,113.9906]
[1680412731995,10.0,20.976,20.967,113.9906]
[1680412732207,10.0,20.974,20.967,113.9906]
[1680412732506,17.0,20.973,20.967,113.9906]
[1680412733890,10.0,20.974,20.967,113.9906]
[1680412734089,17.0,20.973,20.967,113.9906]
[1680412737402,10.0,20.974,20.967,113.9906]
[1680412737603,17.0,20.973,20.967,113.9906]
[1680412745605,10.0,20.974,20.967,113.9906]
[1680412745800,10.0,20.972,20.967,113.9906]
[1680412746006,17.0,20.971,20.967,113.9906]
[1680412746413,17.0,20.973,20.967,113.9906]
[1680412748409,10.0,20.974,20.967,113.9906]
[1680412748613,10.0,20.972,20.967,113.9906]
[1680412748913,17.0,20.971,20.967,113.9906]
[1680412749816,17.0,20.973,20.967,113.9906]
[1680412753412,10.0,20.974,20.967,113.9906]
[1680412753613,17.0,20.973,20.967,113.9906]
[1680412755317,10.0,20.974,20.967,113.9906]
[1680412755519,17.0,20.973,20.967,113.9906]
[1680412756903,42.61776853,20.99,20.967,113.9906]
[1680412756904,21.71,20.98,20.967,113.9906]
[1680412757315,21.71,20.98,20.968,10.0]
[1680412758419,10.0,20.977,20.968,10.0]
[1680412758620,17.0,20.976,20.968,10.0]
[1680412759408,10.0,20.977,20.968,10.0]
[1680412759621,21.71,20.98,20.968,10.0]
[1680412760815,17.0,20.978,20.968,10.0]
[1680412762525,10.0,20.978,20.968,10.0]
[1680412762708,17.0,20.977,20.968,10.0]
[1680412763927,10.0,20.978,20.968,10.0]
[1680412764120,17.0,20.977,20.968,10.0]
[1680412765419,10.0,20.978,20.968,10.0]
[1680412765616,17.0,20.977,20.968,10.0]
[1680412767318,10.0,20.978,20.968,10.0]
[1680412767520,17.0,20.977,20.968,10.0]
[1680412768820,10.0,20.978,20.968,10.0]
[1680412769018,17.0,20.977,20.968,10.0]
[1680412772833,17.0,20.977,20.967,113.9906]
[1680412777436,10.0,20.977,20.967,113.9906]
[1680412777636,10.0,20.975,20.967,113.9906]
[1680412777831,17.0,20.974,20.967,113.9906]
[1680412778334,17.0,20.976,20.967,113.9906]
[1680412781229,10.0,20.977,20.967,113.9906]
[1680412781430,17.0,20.976,20.967,113.9906]
[1680412784842,10.0,20.977,20.967,113.9906]
[1680412785043,17.0,20.976,20.967,113.9906]
[1680412790335,10.0,20.977,20.967,113.9906]
[1680412790545,17.0,20.976,20.967,113.9906]
[1680412793153,10.0,20.977,20.967,113.9906]
[1680412793346,17.0,20.976,20.967,113.9906]
[1680412794755,10.0,20.977,20.967,113.9906]
[1680412794958,17.0,20.976,20.967,113.9906]
[1680412796650,10.0,20.977,20.967,113.9906]
[1680412796841,17.0,20.976,20.967,113.9906]
[1680412799054,10.0,20.977,20.967,113.9906]
[1680412799255,17.0,20.976,20.967,113.9906]
[1680412800646,10.0,20.977,20.967,113.9906]
[1680412800841,17.0,20.976,20.967,113.9906]
[1680412801759,10.0,20.977,20.967,113.9906]
[1680412801964,17.0,20.976,20.967,113.9906]
[1680412802859,10.0,20.977,20.967,113.9906]
[1680412803049,17.0,20.976,20.967,113.9906]
[1680412804360,10.0,20.977,20.967,113.9906]
[1680412804547,17.0,20.976,20.967,113.9906]
[1680412805463,17.0,20.976,20.968,10.0]
[1680412805766,10.0,20.984,20.968,10.0]
[1680412806060,17.0,20.978,20.968,10.0]
[1680412827063,10.0,20.979,20.968,10.0]
[1680412827257,17.0,20.978,20.968,10.0]
[1680412830067,10.0,20.979,20.968,10.0]
[1680412830264,17.0,20.978,20.968,10.0]
[1680412833083,10.0,20.979,20.968,10.0]
[1680412833273,17.0,20.978,20.968,10.0]
[1680412833982,17.0,20.978,20.967,113.9906]
[1680412835486,17.0,20.978,20.968,10.0]
[1680412840875,10.0,20.978,20.968,10.0]
[1680412841076,17.0,20.977,20.968,10.0]
[1680412843087,17.0,20.977,20.968,10.0]
[1680412843978,17.0,20.979,20.968,10.0]
[1680412852394,21.71,20.98,20.968,10.0]
[1680412856496,10.0,20.987,20.971,10.0]
[1680412856995,10.0,20.983,20.971,10.0]
[1680412858709,10.0,20.987,20.971,10.0]
[1680412858990,17.0,20.986,20.973,10.0]
[1680412859178,17.0,20.986,20.974,20.0]
[1680412859374,17.0,20.986,20.975,10.0]
[1680412859576,10.0,20.987,20.975,10.0]
[1680412860896,17.0,20.986,20.975,10.0]
[1680412862994,10.0,20.986,20.975,10.0]
[1680412863884,27.0,20.987,20.975,10.0]
[1680412864086,17.0,20.987,20.975,10.0]
[1680412894624,17.0,20.987,20.973,10.0]
[1680412894809,17.0,20.987,20.975,10.0]
[1680412926860,21.71,20.99,20.975,10.0]
[1680412927046,17.0,20.987,20.975,10.0]
[1680412948292,10.0,20.995,20.975,10.0]
[1680412948473,10.0,20.993,20.977,10.0]
[1680412949182,10.0,20.993,20.977,124.9714]
[1680412949886,10.0,20.991,20.977,124.9714]
[1680412950181,10.0,20.989,20.977,124.9714]
[1680412954587,10.0,20.991,20.977,124.9714]
[1680412954781,10.0,20.989,20.977,124.9714]
[1680412958391,10.0,20.987,20.977,124.9714]
[1680412961593,17.0,20.988,20.977,124.9714]
[1680412973790,17.0,20.987,20.977,124.9714]
[1680412975207,10.0,20.988,20.977,124.9714]
[1680412975397,17.0,20.987,20.977,124.9714]
[1680412976608,10.0,20.988,20.977,124.9714]
[1680412976818,17.0,20.987,20.977,124.9714]
[1680412979611,10.0,20.988,20.977,124.9714]
[1680412979803,17.0,20.987,20.977,124.9714]
[1680412980813,10.0,20.988,20.977,124.9714]
[1680412981022,17.0,20.987,20.977,124.9714]
[1680412982123,10.0,20.988,20.977,124.9714]
[1680412982301,17.0,20.987,20.977,124.9714]
[1680412983217,10.0,20.988,20.977,124.9714]
[1680412983430,17.0,20.987,20.977,124.9714]
[1680412985216,17.0,20.988,20.977,124.9714]
[1680412989820,10.0,20.989,20.977,124.9714]
[1680412990005,17.0,20.988,20.977,124.9714]
[1680412990511,10.0,20.991,20.977,124.9714]
[1680412990820,97.9169,20.999,20.981,10.0]
[1680412991122,97.9169,20.999,20.983,10.0]
[1680412991505,97.9169,20.999,20.984,20.0]
[1680412991706,97.9169,20.999,20.985,10.0]
[1680412991921,17.0,20.994,20.985,10.0]
[1680412993724,17.0,20.994,20.984,20.0]
[1680412999724,10.0,20.994,20.984,20.0]
[1680412999920,17.0,20.993,20.984,20.0]
[1680413005238,10.0,20.994,20.984,20.0]
[1680413005428,17.0,20.993,20.984,20.0]
[1680413006936,17.0,20.993,20.984,10.0]
[1680413009034,17.0,20.993,20.983,30.0]
[1680413020433,10.0,20.994,20.983,30.0]
[1680413020636,17.0,20.993,20.983,30.0]
[1680413025334,10.0,20.994,20.983,30.0]
[1680413025531,10.0,20.992,20.983,30.0]
[1680413026030,17.0,20.991,20.983,30.0]
[1680413026543,17.0,20.993,20.983,30.0]
[1680413030342,10.0,20.994,20.983,30.0]
[1680413030551,10.0,20.992,20.983,20.0]
[1680413030853,17.0,20.991,20.983,20.0]
[1680413031447,17.0,20.993,20.983,20.0]
[1680413036342,124.6778,21.01,20.983,20.0]
[1680413036542,19.06199,21.002,20.984,10.0]
[1680413036853,21.71,21.0,20.984,10.0]
[1680413037057,10.0,20.999,20.984,10.0]
[1680413037741,10.0,20.997,20.984,10.0]
[1680413037942,10.0,20.995,20.984,10.0]
[1680413038445,17.0,20.994,20.984,10.0]
[1680413039037,10.0,20.995,20.984,10.0]
[1680413039249,17.0,20.994,20.984,10.0]
[1680413040760,10.0,20.995,20.984,10.0]
[1680413041057,17.0,20.994,20.984,10.0]
[1680413046466,10.0,20.995,20.984,10.0]
[1680413046759,17.0,20.994,20.984,10.0]
[1680413047749,17.0,20.996,20.984,10.0]
[1680413049659,19.061816,21.003,20.987,10.0]
[1680413049958,10.0,21.002,20.987,10.0]
[1680413050464,10.0,21.002,20.989,10.0]
[1680413051064,10.0,21.0,20.989,10.0]
[1680413051261,17.0,20.999,20.989,10.0]
[1680413057668,10.0,21.0,20.989,10.0]
[1680413057966,17.0,20.999,20.989,10.0]
[1680413061572,10.0,21.0,20.989,10.0]
[1680413061766,17.0,20.999,20.989,10.0]
[1680413065175,10.0,21.0,20.989,10.0]
[1680413065363,17.0,20.999,20.989,10.0]
[1680413075768,17.0,21.001,20.988,117.7461]
[1680413075969,10.0,21.0,20.988,117.7461]
[1680413076173,10.0,20.998,20.988,117.7461]
[1680413076374,17.0,20.997,20.988,117.7461]
[1680413077281,10.0,20.998,20.988,117.7461]
[1680413077482,17.0,20.997,20.988,117.7461]
[1680413078970,17.0,20.999,20.988,117.7461]
[1680413084985,17.0,20.999,20.989,10.0]
[1680413085186,10.0,21.0,20.989,10.0]
[1680413085388,17.0,20.999,20.989,10.0]
[1680413086594,17.0,20.999,20.989,10.0]
[1680413087471,10.0,21.0,20.989,10.0]
[1680413087674,17.0,20.999,20.989,10.0]
[1680413089780,10.0,21.0,20.989,10.0]
[1680413089998,17.0,20.999,20.989,10.0]
[1680413091595,149.76377105,21.039,20.989,10.0]
[1680413091596,10.0,21.008,20.99,21.71]
[1680413091901,10.0,21.008,20.991,10.0]
[1680413092195,10.0,21.006,20.991,30.0]
[1680413092999,17.0,21.005,20.991,30.0]
[1680413093400,17.0,21.006,20.991,30.0]
[1680413098400,19.051866,21.014,20.993,10.0]
[1680413098586,10.0,21.012,20.994,20.0]
[1680413098782,10.0,21.012,20.995,10.0]
[1680413099187,10.0,21.012,20.997,10.0]
[1680413099398,10.0,21.012,21.001,10.0]
[1680413100705,10.0,21.01,21.001,10.0]
[1680413100903,17.0,21.009,21.001,10.0]
[1680413102408,17.0,21.011,21.001,10.0]
[1680413106016,10.0,21.013,21.001,10.0]
[1680413107296,10.0,21.011,21.001,10.0]
[1680413107495,17.0,21.01,21.001,10.0]
[1680413108896,10.0,21.011,21.001,10.0]
[1680413109312,17.0,21.01,21.001,10.0]
[1680413112214,10.0,21.011,21.001,10.0]
[1680413112418,17.0,21.01,21.001,10.0]
[1680413115109,10.0,21.011,21.001,10.0]
[1680413115308,17.0,21.01,21.001,10.0]
[1680413115722,17.0,21.01,20.997,10.0]
[1680413119624,38.71,21.01,20.996,117.8863]
[1680413119926,10.0,21.009,20.996,117.8863]
[1680413120130,10.0,21.007,20.996,117.8863]
[1680413120432,17.0,21.006,20.996,117.8863]
[1680413137719,17.0,21.006,20.997,10.0]
[1680413139834,17.0,21.006,20.996,117.8863]
[1680413140336,17.0,21.005,20.996,117.8863]
[1680413140933,10.0,21.005,20.996,117.8863]
[1680413141134,17.0,21.004,20.996,117.8863]
[1680413142341,17.0,21.006,20.996,117.8863]
[1680413148557,10.0,21.005,20.99,31.71]
[1680413148740,10.0,21.003,20.992,10.0]
[1680413148935,10.0,21.003,20.993,20.0]
[1680413149136,17.0,21.002,20.993,20.0]
[1680413151431,10.0,21.003,20.993,20.0]
[1680413151636,17.0,21.002,20.993,20.0]
[1680413153955,10.0,21.003,20.993,20.0]
[1680413154252,17.0,21.002,20.993,20.0]
[1680413155949,17.0,21.004,20.994,10.0]
[1680413162868,17.0,21.004,20.993,20.0]
[1680413166549,17.0,21.004,20.994,10.0]
[1680413166846,17.0,21.003,20.994,10.0]
[1680413167258,17.0,21.004,20.994,10.0]
[1680413170962,17.0,21.004,20.993,20.0]
[1680413181458,17.0,21.004,20.993,10.0]
[1680413181661,17.0,21.004,20.994,20.0]
[1680413191067,10.0,21.005,20.994,20.0]
[1680413191278,17.0,21.004,20.994,20.0]
[1680413195379,17.0,21.006,20.995,10.0]
[1680413195583,10.0,21.007,20.995,10.0]
[1680413195767,10.0,21.005,20.995,10.0]
[1680413195969,17.0,21.004,20.995,10.0]
[1680413198384,10.0,21.005,20.995,10.0]
[1680413198584,17.0,21.004,20.995,10.0]
[1680413200186,17.0,21.004,20.994,20.0]
[1680413200484,17.0,21.004,20.992,10.0]
[1680413200485,10.0,21.003,20.992,10.0]
[1680413200691,10.0,21.001,20.993,20.0]
[1680413200867,17.0,21.0,20.993,20.0]
[1680413201472,17.0,21.0,20.992,10.0]
[1680413201667,17.0,21.0,20.993,20.0]
[1680413202582,17.0,21.002,20.993,20.0]
[1680413208094,10.0,21.003,20.993,20.0]
[1680413208290,17.0,21.002,20.993,20.0]
[1680413212399,17.0,21.004,20.994,10.0]
[1680413212693,10.0,21.005,20.994,10.0]
[1680413212880,17.0,21.004,20.994,10.0]
[1680413218695,17.0,21.004,20.993,20.0]
[1680413224198,10.0,21.003,20.993,20.0]
[1680413224382,17.0,21.002,20.992,10.0]